[Event "*** Titled Tuesday Blitz"]
[Site "Chess.com"]
[Date "2020.05.12"]
[Round "9"]
[White "LittlePeasant"]
[Black "Didici"]
[Result "1-0"]
[WhiteElo "2789"]
[BlackElo "2642"]
[TimeControl "180+1"]
[EndTime "11:42:42 PDT"]
[Termination "LittlePeasant won by resignation"]

1. Nf3 {[%clk 0:03:00.9]} 1... d5 {[%clk 0:02:59.5]} 2. c4 {[%clk 0:03:00.4]}
2... d4 {[%clk 0:02:58.8]} 3. b4 {[%clk 0:02:58.9]} 3... g5 {[%clk 0:02:57.8]}
4. h3 {[%clk 0:02:58.8]} 4... h6 {[%clk 0:02:53]} 5. e3 {[%clk 0:02:55.2]} 5...
e5 {[%clk 0:02:44.5]} 6. Nxe5 {[%clk 0:02:27.7]} 6... Bg7 {[%clk 0:02:42.4]} 7.
Nf3 {[%clk 0:02:27.6]} 7... dxe3 {[%clk 0:02:41.2]} 8. d4 {[%clk 0:02:27.7]}
8... exf2+ {[%clk 0:02:38.3]} 9. Kxf2 {[%clk 0:02:28.6]} 9... Nc6 {[%clk
0:02:25.8]} 10. Be3 {[%clk 0:02:26.7]} 10... Nxb4 {[%clk 0:02:17.5]} 11. Nc3
{[%clk 0:02:22.9]} 11... Ne7 {[%clk 0:02:12.4]} 12. Qa4+ {[%clk 0:01:47.4]}
12... Nbc6 {[%clk 0:02:11.8]} 13. d5 {[%clk 0:01:47.8]} 13... Bxc3 {[%clk
0:02:03]} 14. Rd1 {[%clk 0:01:43.2]} 14... Bd7 {[%clk 0:01:45.5]} 15. dxc6
{[%clk 0:01:43]} 15... Nxc6 {[%clk 0:01:46.4]} 16. Qc2 {[%clk 0:01:24.6]} 16...
Qf6 {[%clk 0:01:39.8]} 17. Rxd7 {[%clk 0:00:57.5]} 17... Kxd7 {[%clk 0:01:37.9]}
18. Bd3 {[%clk 0:00:58.4]} 18... Rhd8 {[%clk 0:00:26.4]} 19. Bf5+ {[%clk
0:00:52.3]} 19... Ke8 {[%clk 0:00:26]} 20. Bc5 {[%clk 0:00:52.7]} 20... Bd4+
{[%clk 0:00:17.6]} 21. Nxd4 {[%clk 0:00:42.5]} 21... Nxd4 {[%clk 0:00:18.5]} 22.
Re1+ {[%clk 0:00:42.1]} 22... Ne6 {[%clk 0:00:18.2]} 23. Kg1 {[%clk 0:00:38.9]}
23... b6 {[%clk 0:00:15.7]} 24. Ba3 {[%clk 0:00:32.5]} 24... Qd4+ {[%clk
0:00:09.2]} 25. Kh1 {[%clk 0:00:30.7]} 25... Qd2 {[%clk 0:00:09.2]} 26. Qe4
{[%clk 0:00:28.3]} 26... Qd4 {[%clk 0:00:07.2]} 27. Qc6+ {[%clk 0:00:23.1]}
27... Qd7 {[%clk 0:00:07.2]} 28. Rxe6+ {[%clk 0:00:20.5]} 1-0

[Event "*** Titled Tuesday Blitz"]
[Site "Chess.com"]
[Date "2020.05.12"]
[Round "9"]
[White "gross-aleks"]
[Black "jacky72"]
[Result "0-1"]
[WhiteElo "2495"]
[BlackElo "2658"]
[TimeControl "180+1"]
[EndTime "11:42:42 PDT"]
[Termination "jacky72 won by checkmate"]

1. c4 {[%clk 0:02:48.7]} 1... Nf6 {[%clk 0:02:59.8]} 2. Nc3 {[%clk 0:02:46.9]}
2... g6 {[%clk 0:03:00.3]} 3. g3 {[%clk 0:02:46.8]} 3... Bg7 {[%clk 0:03:00.1]}
4. Bg2 {[%clk 0:02:46.9]} 4... O-O {[%clk 0:03:01]} 5. d4 {[%clk 0:02:47.1]}
5... d6 {[%clk 0:03:01.9]} 6. Nf3 {[%clk 0:02:47.2]} 6... Nc6 {[%clk 0:03:02.4]}
7. O-O {[%clk 0:02:47.3]} 7... Bf5 {[%clk 0:03:02.9]} 8. d5 {[%clk 0:02:39]}
8... Na5 {[%clk 0:03:02.5]} 9. Nd4 {[%clk 0:02:38]} 9... Bd7 {[%clk 0:03:02.4]}
10. Qd3 {[%clk 0:02:35.9]} 10... c5 {[%clk 0:03:02.6]} 11. dxc6 {[%clk
0:02:35.9]} 11... bxc6 {[%clk 0:03:03.5]} 12. b4 {[%clk 0:02:18.4]} 12... e5
{[%clk 0:02:50.5]} 13. Nc2 {[%clk 0:02:05.3]} 13... Nb7 {[%clk 0:02:48.1]} 14.
e4 {[%clk 0:02:01.9]} 14... a5 {[%clk 0:02:44.9]} 15. b5 {[%clk 0:02:00.4]}
15... Nc5 {[%clk 0:02:44.5]} 16. Qe2 {[%clk 0:01:57.9]} 16... cxb5 {[%clk
0:02:43.1]} 17. cxb5 {[%clk 0:01:57.6]} 17... a4 {[%clk 0:02:43.3]} 18. Ba3
{[%clk 0:01:54.8]} 18... Qb6 {[%clk 0:02:40.7]} 19. Rab1 {[%clk 0:01:41.2]}
19... Be6 {[%clk 0:02:35.5]} 20. h3 {[%clk 0:01:32.8]} 20... Rfc8 {[%clk
0:02:31.7]} 21. Rfd1 {[%clk 0:01:32.6]} 21... Bf8 {[%clk 0:02:31.1]} 22. Ne3
{[%clk 0:01:26.5]} 22... Rab8 {[%clk 0:02:27.5]} 23. Ncd5 {[%clk 0:01:16.9]}
23... Nxd5 {[%clk 0:02:22.4]} 24. Nxd5 {[%clk 0:01:17.8]} 24... Bxd5 {[%clk
0:02:21.6]} 25. Rxd5 {[%clk 0:01:16.9]} 25... Ne6 {[%clk 0:02:21.9]} 26. Qd3
{[%clk 0:01:11.9]} 26... Nc7 {[%clk 0:02:00.8]} 27. Bxd6 {[%clk 0:01:03.6]}
27... Nxd5 {[%clk 0:02:00.7]} 28. Bxb8 {[%clk 0:00:55.3]} 28... Nc3 {[%clk
0:02:01.1]} 29. Bxe5 {[%clk 0:00:42.1]} 29... Nxb1 {[%clk 0:02:00.6]} 30. Qxb1
{[%clk 0:00:42.9]} 30... Rc5 {[%clk 0:02:01]} 31. Bd4 {[%clk 0:00:30.6]} 31...
Rxb5 {[%clk 0:01:59.4]} 32. Qd3 {[%clk 0:00:26]} 32... Bc5 {[%clk 0:01:57.9]}
33. Bf1 {[%clk 0:00:22.2]} 33... Rb4 {[%clk 0:01:43.6]} 34. Bc3 {[%clk
0:00:19.8]} 34... Rb1 {[%clk 0:01:31.6]} 35. Kg2 {[%clk 0:00:20.7]} 35... Bxf2
{[%clk 0:01:23.2]} 36. Qc4 {[%clk 0:00:19.7]} 36... Bc5 {[%clk 0:01:18.8]} 37.
Qd5 {[%clk 0:00:18.5]} 37... Rb2+ {[%clk 0:01:11.1]} 38. Bxb2 {[%clk 0:00:16.8]}
38... Qxb2+ {[%clk 0:01:12]} 39. Kf3 {[%clk 0:00:08.4]} 39... Qf2+ {[%clk
0:01:12.9]} 40. Kg4 {[%clk 0:00:08.4]} 40... h5+ {[%clk 0:01:10.9]} 41. Kg5
{[%clk 0:00:07.7]} 41... Be7+ {[%clk 0:01:02.9]} 42. Kh6 {[%clk 0:00:06]} 42...
Qe3+ {[%clk 0:01:03.1]} 43. Qg5 {[%clk 0:00:05.6]} 43... Bxg5# {[%clk 0:01:03]}
0-1

[Event "*** Titled Tuesday Blitz"]
[Site "Chess.com"]
[Date "2020.05.12"]
[Round "9"]
[White "GMHess"]
[Black "RobertoJBM"]
[Result "1-0"]
[WhiteElo "2798"]
[BlackElo "2577"]
[TimeControl "180+1"]
[EndTime "11:42:42 PDT"]
[Termination "GMHess won by resignation"]

1. e4 {[%clk 0:03:00.9]} 1... c6 {[%clk 0:02:53.9]} 2. Nc3 {[%clk 0:03:00.6]}
2... d5 {[%clk 0:02:54.8]} 3. d4 {[%clk 0:02:58.6]} 3... dxe4 {[%clk 0:02:54.9]}
4. Nxe4 {[%clk 0:02:59.5]} 4... Nd7 {[%clk 0:02:55.3]} 5. Qe2 {[%clk 0:02:58.8]}
5... Ndf6 {[%clk 0:02:55]} 6. Nf3 {[%clk 0:02:38.1]} 6... Bg4 {[%clk 0:02:53.2]}
7. c3 {[%clk 0:02:31.7]} 7... Nxe4 {[%clk 0:02:48.8]} 8. Qxe4 {[%clk 0:02:31.5]}
8... Nf6 {[%clk 0:02:49.3]} 9. Qf4 {[%clk 0:02:26.6]} 9... Qd5 {[%clk
0:02:49.4]} 10. Ne5 {[%clk 0:02:24.8]} 10... Bh5 {[%clk 0:02:47.8]} 11. Rg1
{[%clk 0:02:13.7]} 11... Qe4+ {[%clk 0:02:40.8]} 12. Qxe4 {[%clk 0:02:11.9]}
12... Nxe4 {[%clk 0:02:41.7]} 13. g4 {[%clk 0:02:07.4]} 13... Bg6 {[%clk
0:02:41.8]} 14. Bg2 {[%clk 0:02:03.9]} 14... f5 {[%clk 0:02:24.5]} 15. Bxe4
{[%clk 0:01:56.4]} 15... fxe4 {[%clk 0:02:24.2]} 16. Nxg6 {[%clk 0:01:56.7]}
16... hxg6 {[%clk 0:02:25.1]} 17. Bf4 {[%clk 0:01:56.4]} 17... g5 {[%clk
0:02:18.7]} 18. Bg3 {[%clk 0:01:52]} 18... e6 {[%clk 0:02:17.5]} 19. Kd2 {[%clk
0:01:46.6]} 19... Kd7 {[%clk 0:02:15.5]} 20. Rae1 {[%clk 0:01:27.7]} 20... Bd6
{[%clk 0:02:15]} 21. Rxe4 {[%clk 0:01:27.4]} 21... Bxg3 {[%clk 0:02:14.6]} 22.
hxg3 {[%clk 0:01:26.8]} 22... Rh2 {[%clk 0:02:14.3]} 23. Re2 {[%clk 0:01:24]}
23... Rf8 {[%clk 0:02:13.7]} 24. f3 {[%clk 0:01:05]} 24... Rh6 {[%clk
0:02:06.3]} 25. Ke3 {[%clk 0:00:56.6]} 25... Kd6 {[%clk 0:01:59.8]} 26. Ke4
{[%clk 0:00:50.8]} 26... Rh3 {[%clk 0:01:57.2]} 27. f4 {[%clk 0:00:35.3]} 27...
g6 {[%clk 0:01:35.2]} 28. c4 {[%clk 0:00:24.9]} 28... Rf7 {[%clk 0:01:27]} 29.
Rgg2 {[%clk 0:00:20.2]} 29... Rh1 {[%clk 0:01:25.6]} 30. fxg5 {[%clk 0:00:15]}
30... Rhf1 {[%clk 0:01:24.1]} 31. Rh2 {[%clk 0:00:11.8]} 31... R1f3 {[%clk
0:01:21.9]} 32. Re3 {[%clk 0:00:10.4]} 32... Rf2 {[%clk 0:01:17.4]} 33. c5+
{[%clk 0:00:10.5]} 33... Ke7 {[%clk 0:01:16.9]} 34. Rxf2 {[%clk 0:00:10]} 34...
Rxf2 {[%clk 0:01:17.8]} 35. Rb3 {[%clk 0:00:10.7]} 35... b5 {[%clk 0:01:11.7]}
36. cxb6 {[%clk 0:00:10.5]} 36... axb6 {[%clk 0:01:12.6]} 37. Rxb6 {[%clk
0:00:11]} 37... Kd6 {[%clk 0:01:13.1]} 38. a4 {[%clk 0:00:09.6]} 38... Rg2
{[%clk 0:01:10.2]} 39. Rb3 {[%clk 0:00:08.3]} 39... Re2+ {[%clk 0:01:08.7]} 40.
Kd3 {[%clk 0:00:07.8]} 40... Rg2 {[%clk 0:01:05.9]} 41. Kc4 {[%clk 0:00:08]}
41... Re2 {[%clk 0:01:04.4]} 42. a5 {[%clk 0:00:07.9]} 42... Re4 {[%clk
0:01:03]} 43. a6 {[%clk 0:00:07.9]} 43... e5 {[%clk 0:01:03.4]} 44. a7 {[%clk
0:00:06.7]} 44... Rxd4+ {[%clk 0:01:03.2]} 45. Kc3 {[%clk 0:00:07.3]} 1-0

[Event "*** Titled Tuesday Blitz"]
[Site "Chess.com"]
[Date "2020.05.12"]
[Round "9"]
[White "HunterBRR"]
[Black "JoachimBN"]
[Result "0-1"]
[WhiteElo "2007"]
[BlackElo "2560"]
[TimeControl "180+1"]
[EndTime "11:42:42 PDT"]
[Termination "JoachimBN won by resignation"]

1. d4 {[%clk 0:03:00.9]} 1... Nf6 {[%clk 0:02:58.6]} 2. c4 {[%clk 0:03:00.8]}
2... e5 {[%clk 0:02:57]} 3. dxe5 {[%clk 0:02:59.6]} 3... Ne4 {[%clk 0:02:56.1]}
4. Qc2 {[%clk 0:02:43.5]} 4... Bb4+ {[%clk 0:02:52.9]} 5. Nd2 {[%clk 0:02:40.4]}
5... Nxd2 {[%clk 0:02:19.6]} 6. Bxd2 {[%clk 0:02:38.2]} 6... Qe7 {[%clk
0:02:19.3]} 7. Nf3 {[%clk 0:02:36.3]} 7... Nc6 {[%clk 0:02:18.2]} 8. e3 {[%clk
0:02:30.1]} 8... Bxd2+ {[%clk 0:02:11.9]} 9. Qxd2 {[%clk 0:02:26.6]} 9... Nxe5
{[%clk 0:02:12.8]} 10. Nxe5 {[%clk 0:02:23.5]} 10... Qxe5 {[%clk 0:02:13.7]} 11.
Bd3 {[%clk 0:02:23.1]} 11... b6 {[%clk 0:02:05.7]} 12. O-O {[%clk 0:02:19]}
12... Bb7 {[%clk 0:02:03.4]} 13. Rac1 {[%clk 0:02:17.7]} 13... O-O {[%clk
0:01:57.4]} 14. Rfd1 {[%clk 0:01:41.8]} 14... d6 {[%clk 0:01:41.1]} 15. b4
{[%clk 0:01:27.3]} 15... Qg5 {[%clk 0:01:34.8]} 16. Bf1 {[%clk 0:01:23.7]} 16...
Rad8 {[%clk 0:01:29.5]} 17. Qc3 {[%clk 0:01:05.5]} 17... Qe5 {[%clk 0:01:19.6]}
18. Rd4 {[%clk 0:00:55.7]} 18... Rfe8 {[%clk 0:01:00.9]} 19. c5 {[%clk
0:00:18.5]} 19... h6 {[%clk 0:00:27.4]} 20. cxd6 {[%clk 0:00:15.7]} 20... cxd6
{[%clk 0:00:27]} 21. Qb2 {[%clk 0:00:10.8]} 21... Rc8 {[%clk 0:00:25.1]} 22.
Rcd1 {[%clk 0:00:09.9]} 22... d5 {[%clk 0:00:22.4]} 23. Qb3 {[%clk 0:00:08.6]}
23... Rc7 {[%clk 0:00:21.6]} 24. Be2 {[%clk 0:00:08]} 24... Rec8 {[%clk
0:00:21.7]} 25. Bf3 {[%clk 0:00:07.8]} 25... Rc3 {[%clk 0:00:21.8]} 26. Qa3
{[%clk 0:00:06.2]} 26... Rxa3 {[%clk 0:00:21.1]} 0-1

[Event "*** Titled Tuesday Blitz"]
[Site "Chess.com"]
[Date "2020.05.12"]
[Round "9"]
[White "RATNAKARAN"]
[Black "Isajevsky_Anton"]
[Result "1-0"]
[WhiteElo "2565"]
[BlackElo "2392"]
[TimeControl "180+1"]
[EndTime "11:42:43 PDT"]
[Termination "RATNAKARAN won by checkmate"]

1. e4 {[%clk 0:03:00.9]} 1... c5 {[%clk 0:02:59.2]} 2. Nf3 {[%clk 0:02:59.6]}
2... d6 {[%clk 0:02:59.2]} 3. c3 {[%clk 0:02:58.6]} 3... Nf6 {[%clk 0:02:58.5]}
4. h3 {[%clk 0:02:57.8]} 4... Bd7 {[%clk 0:02:58]} 5. Bd3 {[%clk 0:02:56.8]}
5... Bc6 {[%clk 0:02:58.2]} 6. Qe2 {[%clk 0:02:56.9]} 6... e5 {[%clk 0:02:54.2]}
7. O-O {[%clk 0:02:56.5]} 7... Be7 {[%clk 0:02:53]} 8. b4 {[%clk 0:02:56.3]}
8... Qc7 {[%clk 0:01:58.3]} 9. a4 {[%clk 0:02:54.2]} 9... O-O {[%clk 0:01:48.1]}
10. b5 {[%clk 0:02:52.9]} 10... Bd7 {[%clk 0:01:47.2]} 11. Na3 {[%clk
0:02:53.5]} 11... h6 {[%clk 0:01:43.7]} 12. Nc4 {[%clk 0:02:52.9]} 12... Be6
{[%clk 0:01:42.5]} 13. Ba3 {[%clk 0:02:50.8]} 13... Re8 {[%clk 0:01:41.2]} 14.
Rfb1 {[%clk 0:02:50]} 14... Nbd7 {[%clk 0:01:40.5]} 15. a5 {[%clk 0:02:49]}
15... Bf8 {[%clk 0:01:33.3]} 16. Bc1 {[%clk 0:02:44.1]} 16... b6 {[%clk
0:01:27.4]} 17. Bc2 {[%clk 0:02:42.7]} 17... d5 {[%clk 0:01:25.5]} 18. exd5
{[%clk 0:02:40.1]} 18... Bxd5 {[%clk 0:01:25.6]} 19. Ne3 {[%clk 0:02:38.4]}
19... Bb7 {[%clk 0:01:18.3]} 20. a6 {[%clk 0:02:37.1]} 20... Bxf3 {[%clk
0:01:14.7]} 21. Qxf3 {[%clk 0:02:37.2]} 21... e4 {[%clk 0:01:15.3]} 22. Qe2
{[%clk 0:02:36.7]} 22... Ne5 {[%clk 0:01:13.7]} 23. c4 {[%clk 0:02:33.4]} 23...
Ng6 {[%clk 0:01:03.7]} 24. Bb2 {[%clk 0:02:31.6]} 24... Nf4 {[%clk 0:01:02.8]}
25. Qd1 {[%clk 0:02:30.3]} 25... Qd6 {[%clk 0:00:53]} 26. Ra3 {[%clk 0:02:29.3]}
26... Rad8 {[%clk 0:00:50.7]} 27. Nf5 {[%clk 0:02:23.1]} 27... Qe6 {[%clk
0:00:49.8]} 28. Ne3 {[%clk 0:02:18.2]} 28... g6 {[%clk 0:00:44]} 29. Bc3 {[%clk
0:02:07.2]} 29... Bg7 {[%clk 0:00:43.3]} 30. Qf1 {[%clk 0:02:06]} 30... h5
{[%clk 0:00:41.1]} 31. Re1 {[%clk 0:02:04.6]} 31... Qd7 {[%clk 0:00:33.8]} 32.
Kh2 {[%clk 0:02:01.9]} 32... Nh7 {[%clk 0:00:32.5]} 33. Bxg7 {[%clk 0:01:58.3]}
33... Kxg7 {[%clk 0:00:32.3]} 34. g3 {[%clk 0:01:58.2]} 34... Ng5 {[%clk
0:00:10.8]} 35. gxf4 {[%clk 0:01:55.5]} 35... Nf3+ {[%clk 0:00:10.9]} 36. Kg2
{[%clk 0:01:50.1]} 36... Nxd2 {[%clk 0:00:05.8]} 37. Qe2 {[%clk 0:01:41.1]}
37... Qc7 {[%clk 0:00:04]} 38. Nd5 {[%clk 0:01:38.9]} 38... Rxd5 {[%clk
0:00:04]} 39. cxd5 {[%clk 0:01:38.8]} 39... Nf3 {[%clk 0:00:03.6]} 40. Qe3
{[%clk 0:01:28.9]} 40... Nxe1+ {[%clk 0:00:03.5]} 41. Qxe1 {[%clk 0:01:29]}
41... Qxf4 {[%clk 0:00:04.4]} 42. Qe3 {[%clk 0:01:28.6]} 42... Qd6 {[%clk
0:00:04.5]} 43. Bb3 {[%clk 0:01:26.3]} 43... f5 {[%clk 0:00:04.2]} 44. Bc4
{[%clk 0:01:25.6]} 44... f4 {[%clk 0:00:04.4]} 45. Qc3+ {[%clk 0:01:25.6]} 45...
Kh6 {[%clk 0:00:04.2]} 46. f3 {[%clk 0:01:25.7]} 46... e3 {[%clk 0:00:02.5]} 47.
Ra2 {[%clk 0:01:25.3]} 47... Re5 {[%clk 0:00:02.8]} 48. Kf1 {[%clk 0:01:22.5]}
48... Rg5 {[%clk 0:00:02.5]} 49. Qh8# {[%clk 0:01:20.8]} 1-0

[Event "*** Titled Tuesday Blitz"]
[Site "Chess.com"]
[Date "2020.05.12"]
[Round "9"]
[White "mmaks007"]
[Black "ZEN-22"]
[Result "0-1"]
[WhiteElo "2240"]
[BlackElo "2417"]
[TimeControl "180+1"]
[EndTime "11:42:43 PDT"]
[Termination "ZEN-22 won by resignation"]

1. e4 {[%clk 0:03:00.9]} 1... c6 {[%clk 0:03:00.9]} 2. d4 {[%clk 0:03:00.2]}
2... d5 {[%clk 0:03:01.8]} 3. Nc3 {[%clk 0:02:59.1]} 3... b5 {[%clk 0:03:00.4]}
4. exd5 {[%clk 0:02:42.7]} 4... b4 {[%clk 0:03:00.2]} 5. Na4 {[%clk 0:02:39.2]}
5... cxd5 {[%clk 0:02:59.3]} 6. Bb5+ {[%clk 0:02:36.6]} 6... Bd7 {[%clk
0:02:58.5]} 7. Bxd7+ {[%clk 0:02:35.2]} 7... Nxd7 {[%clk 0:02:58.4]} 8. Nf3
{[%clk 0:02:32.2]} 8... e6 {[%clk 0:02:57.5]} 9. O-O {[%clk 0:02:31.9]} 9... Nb6
{[%clk 0:02:57.3]} 10. Nxb6 {[%clk 0:02:31.5]} 10... Qxb6 {[%clk 0:02:53]} 11.
Bf4 {[%clk 0:02:20.6]} 11... Nf6 {[%clk 0:02:51.9]} 12. Ne5 {[%clk 0:02:12]}
12... Be7 {[%clk 0:02:50.9]} 13. Kh1 {[%clk 0:02:08.6]} 13... O-O {[%clk
0:02:49.8]} 14. f3 {[%clk 0:02:08.5]} 14... Rfc8 {[%clk 0:02:49]} 15. Rf2 {[%clk
0:02:03.4]} 15... a5 {[%clk 0:02:48.8]} 16. g4 {[%clk 0:02:00.3]} 16... a4
{[%clk 0:02:47.1]} 17. h4 {[%clk 0:01:59.9]} 17... Qb5 {[%clk 0:02:44.8]} 18. h5
{[%clk 0:01:39.4]} 18... Nd7 {[%clk 0:02:43.9]} 19. Nxd7 {[%clk 0:01:38.6]}
19... Qxd7 {[%clk 0:02:42.9]} 20. Qd2 {[%clk 0:01:34.7]} 20... Rc4 {[%clk
0:02:36.3]} 21. Rd1 {[%clk 0:01:22.2]} 21... Rac8 {[%clk 0:02:34.6]} 22. Qd3
{[%clk 0:01:21.2]} 22... Qc6 {[%clk 0:02:31.8]} 23. Rdd2 {[%clk 0:01:21.5]}
23... a3 {[%clk 0:02:27.8]} 24. bxa3 {[%clk 0:01:18]} 24... Rc3 {[%clk
0:02:27.6]} 25. Qe2 {[%clk 0:01:16.2]} 25... Rxa3 {[%clk 0:02:23]} 26. h6 {[%clk
0:01:04.6]} 26... g6 {[%clk 0:02:20.4]} 27. g5 {[%clk 0:00:59.5]} 27... Rxa2
{[%clk 0:02:19.1]} 28. Qe5 {[%clk 0:00:58.8]} 28... f6 {[%clk 0:01:58.4]} 29.
gxf6 {[%clk 0:00:54.4]} 29... Bf8 {[%clk 0:01:58.2]} 30. f7+ {[%clk 0:00:47]}
30... Kxf7 {[%clk 0:01:58.1]} 31. Bg5 {[%clk 0:00:47.3]} 31... Ra7 {[%clk
0:01:36.1]} 32. Rde2 {[%clk 0:00:41.5]} 32... Ke8 {[%clk 0:01:17.6]} 33. Qxe6+
{[%clk 0:00:19.6]} 33... Qxe6 {[%clk 0:01:16.3]} 34. Rxe6+ {[%clk 0:00:20.5]}
34... Kd7 {[%clk 0:01:14.4]} 35. Rfe2 {[%clk 0:00:20.6]} 35... Ra2 {[%clk
0:00:42.4]} 36. Be7 {[%clk 0:00:18.6]} 36... Rcxc2 {[%clk 0:00:40.4]} 37. Rxc2
{[%clk 0:00:15.7]} 37... Rxc2 {[%clk 0:00:39.7]} 0-1

[Event "*** Titled Tuesday Blitz"]
[Site "Chess.com"]
[Date "2020.05.12"]
[Round "9"]
[White "StockholmMissile"]
[Black "politeplayer"]
[Result "1-0"]
[WhiteElo "2425"]
[BlackElo "2188"]
[TimeControl "180+1"]
[EndTime "11:42:45 PDT"]
[Termination "StockholmMissile won by resignation"]

1. e4 {[%clk 0:03:00.9]} 1... c5 {[%clk 0:02:59.1]} 2. Nf3 {[%clk 0:03:00.4]}
2... e6 {[%clk 0:02:58.1]} 3. c3 {[%clk 0:02:57.2]} 3... Nf6 {[%clk 0:02:56.7]}
4. e5 {[%clk 0:02:54.1]} 4... Nd5 {[%clk 0:02:57.2]} 5. d4 {[%clk 0:02:54.6]}
5... cxd4 {[%clk 0:02:56.7]} 6. cxd4 {[%clk 0:02:55.2]} 6... d6 {[%clk
0:02:57.1]} 7. Bd3 {[%clk 0:02:49.7]} 7... Nc6 {[%clk 0:02:55.5]} 8. O-O {[%clk
0:02:49]} 8... dxe5 {[%clk 0:02:55.1]} 9. dxe5 {[%clk 0:02:48.3]} 9... Ke7
{[%clk 0:02:54.4]} 10. Nbd2 {[%clk 0:02:33]} 10... Ke8 {[%clk 0:02:53.3]} 11.
Ne4 {[%clk 0:02:24.8]} 11... Be7 {[%clk 0:02:52.4]} 12. Bg5 {[%clk 0:02:20.6]}
12... h6 {[%clk 0:02:47.8]} 13. Bxe7 {[%clk 0:02:17.2]} 13... Qxe7 {[%clk
0:02:48]} 14. Rc1 {[%clk 0:02:16.4]} 14... Kf8 {[%clk 0:02:33.5]} 15. Bb1 {[%clk
0:02:15]} 15... Bd7 {[%clk 0:02:19.6]} 16. a3 {[%clk 0:02:12.7]} 16... g6 {[%clk
0:02:13.5]} 17. Nc3 {[%clk 0:02:07.1]} 17... Nc7 {[%clk 0:02:02.2]} 18. Qe2
{[%clk 0:01:57.4]} 18... Kg7 {[%clk 0:01:57.3]} 19. Rfd1 {[%clk 0:01:57.3]}
19... Rhd8 {[%clk 0:01:55]} 20. h4 {[%clk 0:01:53.4]} 20... Be8 {[%clk
0:01:53.6]} 21. h5 {[%clk 0:01:53.1]} 21... Rxd1+ {[%clk 0:01:45.7]} 22. Rxd1
{[%clk 0:01:53.4]} 22... Rd8 {[%clk 0:01:44.8]} 23. Rxd8 {[%clk 0:01:51.8]}
23... Qxd8 {[%clk 0:01:44]} 24. hxg6 {[%clk 0:01:52.7]} 24... fxg6 {[%clk
0:01:41.9]} 25. Ne4 {[%clk 0:01:52.2]} 25... Nd4 {[%clk 0:01:37]} 26. Nxd4
{[%clk 0:01:46.9]} 26... Qxd4 {[%clk 0:01:35.9]} 27. Nd6 {[%clk 0:01:46.8]}
27... Ba4 {[%clk 0:01:10.7]} 28. Bd3 {[%clk 0:01:25.2]} 28... Nd5 {[%clk
0:01:05.9]} 29. Qf3 {[%clk 0:01:07.9]} 29... Qf4 {[%clk 0:00:54.4]} 30. Qxf4
{[%clk 0:00:57.7]} 30... Nxf4 {[%clk 0:00:53.1]} 31. Be4 {[%clk 0:00:57.9]}
31... Bc6 {[%clk 0:00:41.7]} 32. Bxc6 {[%clk 0:00:53.7]} 32... bxc6 {[%clk
0:00:41.2]} 33. Nc8 {[%clk 0:00:53.6]} 33... Nd3 {[%clk 0:00:37.5]} 34. Nxa7
{[%clk 0:00:48.1]} 34... Nxe5 {[%clk 0:00:37.4]} 35. Nc8 {[%clk 0:00:44.4]}
35... Nc4 {[%clk 0:00:36.5]} 36. a4 {[%clk 0:00:43.4]} 36... Nxb2 {[%clk
0:00:36.2]} 37. a5 {[%clk 0:00:43.5]} 1-0

[Event "*** Titled Tuesday Blitz"]
[Site "Chess.com"]
[Date "2020.05.12"]
[Round "9"]
[White "manuellarrea"]
[Black "Ariadna_Atreides"]
[Result "0-1"]
[WhiteElo "2174"]
[BlackElo "2088"]
[TimeControl "180+1"]
[EndTime "11:42:47 PDT"]
[Termination "Ariadna_Atreides won on time"]

1. e4 {[%clk 0:03:00.3]} 1... c5 {[%clk 0:02:59.1]} 2. Nf3 {[%clk 0:02:59]} 2...
d6 {[%clk 0:02:59.6]} 3. d4 {[%clk 0:02:58.2]} 3... cxd4 {[%clk 0:02:59.9]} 4.
Nxd4 {[%clk 0:02:58.5]} 4... Nf6 {[%clk 0:03:00.5]} 5. Nc3 {[%clk 0:02:58.3]}
5... Nc6 {[%clk 0:03:01.1]} 6. Bc4 {[%clk 0:02:55.4]} 6... Bd7 {[%clk
0:02:59.1]} 7. Be3 {[%clk 0:02:54.9]} 7... Ng4 {[%clk 0:02:57.6]} 8. Bg5 {[%clk
0:02:43.5]} 8... Qb6 {[%clk 0:02:53]} 9. Nd5 {[%clk 0:01:51.9]} 9... Qxd4 {[%clk
0:02:26.1]} 10. Nc7+ {[%clk 0:01:49.3]} 10... Kd8 {[%clk 0:02:25.5]} 11. Qxd4
{[%clk 0:01:48.2]} 11... Nxd4 {[%clk 0:02:26]} 12. Nxa8 {[%clk 0:01:47.5]} 12...
Nxc2+ {[%clk 0:02:25.1]} 13. Ke2 {[%clk 0:01:45]} 13... Nxa1 {[%clk 0:02:24.3]}
14. Rxa1 {[%clk 0:01:38.8]} 14... Ne5 {[%clk 0:02:21]} 15. Bd3 {[%clk 0:01:11]}
15... Bc6 {[%clk 0:02:10.4]} 16. Be3 {[%clk 0:00:59.2]} 16... Nxd3 {[%clk
0:01:56.9]} 17. Kxd3 {[%clk 0:00:57.3]} 17... b6 {[%clk 0:01:57.2]} 18. Nxb6
{[%clk 0:00:55.9]} 18... axb6 {[%clk 0:01:55.8]} 19. Bxb6+ {[%clk 0:00:55.4]}
19... Kd7 {[%clk 0:01:55.2]} 20. a4 {[%clk 0:00:55]} 20... g6 {[%clk 0:01:52.9]}
21. b4 {[%clk 0:00:52.1]} 21... Bg7 {[%clk 0:01:52.5]} 22. Rc1 {[%clk
0:00:39.7]} 22... Bxa4 {[%clk 0:01:46]} 23. Rc7+ {[%clk 0:00:37.2]} 23... Ke6
{[%clk 0:01:46]} 24. f4 {[%clk 0:00:35.3]} 24... Bb5+ {[%clk 0:01:41.2]} 25. Ke3
{[%clk 0:00:33.4]} 25... Bh6 {[%clk 0:01:38.5]} 26. g4 {[%clk 0:00:29.7]} 26...
Ra8 {[%clk 0:01:34.3]} 27. Ba7 {[%clk 0:00:21.2]} 27... f6 {[%clk 0:01:16.3]}
28. h4 {[%clk 0:00:18.9]} 28... Bf8 {[%clk 0:01:08.2]} 29. g5 {[%clk 0:00:12]}
29... fxg5 {[%clk 0:01:05.2]} 30. hxg5 {[%clk 0:00:10.9]} 30... Bg7 {[%clk
0:01:00.4]} 31. Kf3 {[%clk 0:00:09]} 31... h6 {[%clk 0:00:47.3]} 32. gxh6 {[%clk
0:00:03.8]} 32... Bxh6 {[%clk 0:00:46.9]} 33. Kg4 {[%clk 0:00:03.3]} 33... Be2+
{[%clk 0:00:40.6]} 0-1